[Event "FRA-ch Teams Top 16-B 2022"]
[Site "Chartres"]
[Date "2022.06.10"]
[Round "2.5"]
[White "Nezar, Mustapha"]
[Black "Boukhris-Ferre, Yacine"]
[Result "1-0"]
[ECO "C57"]
[WhiteElo "2357"]
[BlackElo "2183"]
[Annotator "TA"]
[PlyCount "67"]
[EventDate "2022.06.09"]
[EventType "team-tourn"]
[EventCountry "FRA"]
[SourceTitle "playchess.com"]
[Source "ChessBase"]
[SourceQuality "1"]
[TimeControl "40/5400+30:1800+30"]

{[%evp 14,67,115,33,39,36,56,10,10,6,66,58,70,57,65,61,75,67,84,95,133,137,118,147,175,185,191,62,96,95,105,85,120,131,273,276,266,274,287,279,269,270,360,357,600,575,864,726,29988,573,551,484,485,388,441,395]} 1. e4 {[%emt 0:00:04]} e5 {[%emt 0:00:13]} 2. Nf3 {[%emt 0:00:31]} Nc6 {[%emt 0:00:09]} 3. Bc4 {[%emt 0:00:13]} Nf6 {[%emt 0:00:10]} 4. Ng5 {[%emt 0:01:05]} d5 {[%emt 0:02:00]} 5. exd5 {[%emt 0:00:09]} b5 {[%emt 0:01:47]} 6. Bf1 {[%emt 0:07:53]} Nd4 {[%emt 0:01:46]} 7. c3 {[%emt 0:00:39]} Nxd5 {[%emt 0:00:57]} 8. Nxf7 {[%emt 0:02:32]} (8. cxd4 $16 Qxg5 9. Bxb5+ Kd8 10. Qf3) 8... Kxf7 $14 {[%emt 0:02:28] C57: Two Knights: Wilkes-Barre/Traxler and 4 Ng5 d5 5 exd5, unusual Black 5th moves.} 9. cxd4 {[%emt 0:00:06]} exd4 {[%emt 0:39:26]} 10. Qf3+ $1 {[%emt 0:14:48] 10.Qf3+ scores better than 10.Bxb5.} (10. Bxb5 $14 {is superior.} Qe7+ 11. Kf1) 10... Nf6 $11 {[%emt 0:18:06] [#] And now ...Qe8+ would win. The position is equal.} 11. Bxb5 {[%emt 0:05:26]} (11. Qxa8 $6 Qe8+ 12. Be2 d3 $16) 11... Be6 {[%emt 0:03:44]} (11... Qe7+ $1 $11 12. Qe2 (12. Kd1 $2 Bg4 $19) 12... Qxe2+ 13. Bxe2 Nd5) 12. O-O $1 $14 {[%emt 0:02:38]} Rb8 {[%emt 0:03:29]} 13. Ba4 {[%emt 0:18:14]} Bd5 {[%emt 0:05:02]} 14. Qe2 {[%emt 0:07:19][%cal Oa4b3]} Bd6 {[%emt 0:02:25]} 15. d3 {[%emt 0:00:47] [#]} Rb4 $146 {[%emt 0:04:34]} ({Predecessor:} 15... c6 16. Nd2 Re8 17. Ne4 Nxe4 18. dxe4 Rxe4 19. Qh5+ Kg8 20. g3 Re5 21. Qd1 c5 {1-0 (49) Jelacic,Z-Vajs,D Yugoslavia 1972}) 16. Bb3 {[%emt 0:05:06]} Rxb3 {[%emt 0:00:44]} 17. axb3 {[%emt 0:00:09] Threatens to win with Bg5.} Re8 {[%emt 0:00:13]} 18. Qd1 {[%emt 0:00:22]} Qa8 {[%emt 0:07:41]} 19. f3 {[%emt 0:01:10]} Qb8 {[%emt 0:01:34]} 20. Na3 {[%emt 0:13:03]} ({Better is} 20. Nd2 $18) 20... Bxb3 {[%emt 0:00:57] [#] A strong pair of Bishops.} 21. Qd2 {[%emt 0:00:13]} c6 {[%emt 0:01:29]} 22. f4 {[%emt 0:02:33]} Nd5 {[%emt 0:00:49]} 23. Nc4 {[%emt 0:01:46]} Ne3 {[%emt 0:01:43] This costs Black the game.} (23... Bxc4 $16 {is a better defense.} 24. dxc4 Ne3) 24. Nxd6+ $18 {[%emt 0:02:05]} (24. Nxe3 dxe3 25. Qe2 Qb6 $11) 24... Qxd6 {[%emt 0:00:02]} 25. Rxa7+ {[%emt 0:00:49]} Kg8 {[%emt 0:00:01]} 26. Re1 {[%emt 0:02:02]} Bd5 {[%emt 0:00:21]} 27. Qf2 {[%emt 0:01:37][%cal Rc1e3]} Qc5 {[%emt 0:00:52]} 28. Rb7 {[%emt 0:00:39]} Re6 $2 {[%emt 0:00:37]} (28... Qa5 29. Rd7 Bf7 30. Rxd4 (30. Bxe3 dxe3 31. Qg3 e2 $18) (30. Qg3 Nf5 $17) 30... Nd5 31. Rxe8+ Bxe8) 29. f5 {[%emt 0:03:48][%cal Bf4f5,Bf5f6,Bf6g7][%mdl 32]} ({Stronger than} 29. Qg3 Rg6 30. Rb8+ Kf7 31. Rb7+ Kg8 32. Rb8+ Kf7 33. Rb7+ Kg8 $11) 29... Re5 {[%emt 0:00:41]} 30. f6 {[%emt 0:02:41] White threatens f7+ and mate.} Rf5 {[%emt 0:00:01]} 31. Qxf5 {[%emt 0:01:45]} Nxf5 {[%emt 0:00:33]} 32. Re8+ {[%emt 0:00:06]} Qf8 {[%emt 0:00:14]} 33. Rxf8+ {[%emt 0:00:07]} Kxf8 {[%emt 0:00:04]} 34. fxg7+ {[%emt 0:00:06] Weighted Error Value: White=0.38/Black=0.64} 1-0

[Event "FRA-ch Teams Top 16-B 2022"]
[Site "Chartres"]
[Date "2022.06.10"]
[Round "2.6"]
[White "Domenech, Vianney"]
[Black "Savina, Anastasia"]
[Result "1-0"]
[ECO "D03"]
[WhiteElo "2266"]
[BlackElo "2348"]
[Annotator "TA"]
[PlyCount "86"]
[EventDate "2022.06.09"]
[EventType "team-tourn"]
[EventCountry "FRA"]
[SourceTitle "playchess.com"]
[Source "ChessBase"]
[SourceQuality "1"]
[TimeControl "40/5400+30:1800+30"]

{[%evp 9,86,0,33,-11,-8,-83,-76,-88,-87,-93,-97,-110,-110,-95,-108,-95,5,-118,-70,-83,67,14,10,0,0,0,0,0,16,18,89,0,0,0,29982,29983,29983,29984,29984,0,0,0,29984,29985,29985,29986,29986,29987,29987,0,0,0,29987,29987,29987,29986,29986,0,29991,29992,29992,29989,29990,29991,29991,29988,29988,29989,29989,0,0,0,29989,29990,29990,29991,29995,29996,29996]} 1. d4 {[%emt 0:00:03]} Nf6 {[%emt 0:02:11]} 2. Bg5 {[%emt 0:00:05]} d5 {[%emt 0:02:13]} 3. Nd2 {[%emt 0:01:32]} Nbd7 {[%emt 0:07:09]} 4. Ngf3 {[%emt 0:02:09]} c5 {[%emt 0:02:40]} 5. e3 {[%emt 0:00:47]} Qb6 {[%emt 0:07:56] [#]} 6. a4 $146 {[%emt 0:20:39] D03: 1 d4 d5 2 Nf3 Nf6 3 Bg5, including Torre Attack with early ...d5.} ({Predecessor:} 6. Rb1 g6 7. Bd3 Bg7 8. c3 O-O 9. O-O Re8 10. Re1 e5 11. dxe5 Nxe5 12. Nxe5 Rxe5 13. Bf4 Re8 14. c4 Be6 15. Qc2 Nh5 16. Bg5 Rac8 17. a3 Qc7 18. Bh4 a6 19. a4 Bf6 {1-0 (37) Erigaisi,A (2526)-Jumabayev,R (2625) Xingtai 2019}) 6... Ne4 {[%emt 0:23:53]} 7. dxc5 {[%emt 0:21:43]} (7. Nxe4 $11 {keeps the balance.} dxe4 8. Nd2) 7... Qxb2 $17 {[%emt 0:10:54]} 8. Nxe4 {[%emt 0:14:18] Black is better.} (8. Bb5 $2 Nc3 9. Qc1 Qxc1+ 10. Rxc1 a6 $19) 8... dxe4 {[%emt 0:00:47]} 9. Nd2 {[%emt 0:02:01]} Qc3 {[%emt 0:20:52]} 10. Rb1 {[%emt 0:10:02]} a6 {[%emt 0:01:31]} (10... Nxc5 $6 11. Bb5+ Bd7 12. Bxd7+ Nxd7 13. O-O $15) 11. Bc4 {[%emt 0:01:15][%cal Oc5c6]} Nxc5 {[%emt 0:07:03] And now ...Bf5 would win.} 12. O-O {[%emt 0:00:54]} Bd7 {[%emt 0:02:51]} (12... Bf5 $17 13. Qe2 (13. Qh5 $2 O-O-O $19) 13... Rc8) 13. f3 {[%emt 0:04:45]} (13. Bd5 $1 $11 {was the only way to keep the balance.}) 13... h6 {[%emt 0:05:08]} (13... f6 $17 14. Qe2 fxg5 15. Nxe4 Qe5 16. Nxc5 Qxc5) 14. Bh4 $15 {[%emt 0:01:24]} O-O-O {[%emt 0:01:46]} (14... Qxe3+ 15. Bf2 Qg5 16. Nxe4 Nxe4 17. fxe4 $16) (14... e6 $17 15. Qe2 Bxa4 16. Nxe4 Qxc2 17. Nxc5 Qxe2 18. Bxe2 Bxc5 19. Rxb7 Bxe3+ 20. Bf2 Bxf2+ 21. Kxf2 Bc6) 15. Bd5 {[%emt 0:03:27]} (15. fxe4 $14 Bxa4 16. Bd5) 15... Bc6 $1 $11 {[%emt 0:00:30] [#]} (15... Qxe3+ $2 16. Bf2 Qxf2+ 17. Kxf2 $18) 16. Nc4 $1 {[%emt 0:03:07] Hoping for Nb6+.} Bxd5 {[%emt 0:00:34]} (16... Nxa4 $2 17. Bxc6 b5 18. Qe2 exf3 19. Bxf3 $1 Qxc4 20. Qxc4+ bxc4 21. Bg3 $18) 17. Nb6+ {[%emt 0:00:12]} Kb8 {[%emt 0:00:18][%cal Of7f6]} 18. Bg3+ {[%emt 0:02:05]} Ka7 {[%emt 0:00:41] aiming for ...e6.} 19. Bc7 {[%emt 0:05:45]} Qxe3+ {[%emt 0:00:25]} (19... Rd7 $1 $11 20. Nc8+ (20. Nxd5 Qc4 $11) 20... Ka8 21. Nb6+ Ka7 22. Nxd5 Qc4) 20. Kh1 {[%emt 0:00:04]} (20. Rf2 $16 e5 21. Nxd5 (21. Bxd8 Be6 $14)) 20... exf3 {[%emt 0:00:25]} 21. Rxf3 {[%emt 0:01:08]} Bxf3 {[%emt 0:00:40][%mdl 8192]} (21... Qe6 $11) 22. Qxd8 {[%emt 0:00:27][%csl Gc7][%cal Rd8b8]} Bxg2+ {[%emt 0:00:19]} 23. Kxg2 {[%emt 0:00:02][%csl Gb6][%cal Rd8a8]} Qe2+ {[%emt 0:00:39]} 24. Kh3 $2 {[%emt 0:01:12]} (24. Kg1 Qe3+ 25. Kf1 Qh3+ 26. Ke2 Qg2+ 27. Ke1 Qg1+ 28. Kd2 Qg5+ 29. Kc3 Qf6+ 30. Kb4 Qd4+ 31. Qxd4) 24... Qh5+ $2 {[%emt 0:00:29][%mdl 8192]} (24... Qf3+ $11 25. Bg3 Qf5+ 26. Kg2 Qxc2+ 27. Kf3 Qd3+ 28. Qxd3 Nxd3 29. Nc8+ Ka8 30. Nb6+ Ka7 31. Nc8+ Ka8 32. Nb6+ Ka7) 25. Kg2 {[%emt 0:00:12][%csl Gd8][%cal Rc7b8]} Qe2+ {[%emt 0:00:03]} 26. Kg1 {[%emt 0:00:24][%csl Gb6][%cal Rd8a8]} Qe3+ {[%emt 0:00:11]} 27. Kf1 $1 {[%emt 0:00:17][%csl Gd8][%cal Rc7b8]} Qf3+ {[%emt 0:01:02]} 28. Ke1 $1 {[%emt 0:01:15][%csl Gd8][%cal Rc7b8]} Qe3+ {[%emt 0:00:38]} 29. Kf1 {[%emt 0:01:42][%csl Gc7][%cal Rd8b8]} Qf3+ {[%emt 0:00:10]} 30. Ke1 {[%emt 0:00:03][%csl Gd8][%cal Rc7b8] Really sharp!} ({Less strong is} 30. Kg1 Qe3+ 31. Kf1 $18) 30... Qe3+ $1 {[%emt 0:00:03] [#]} (30... Qh1+ {gets mated.} 31. Kf2 Ne4+ 32. Ke3) 31. Kd1 $1 {[%emt 0:01:27][%csl Gd8][%cal Rc7b8]} Qg1+ {[%emt 0:01:23]} 32. Ke2 {[%emt 0:00:43][%csl Gd8][%cal Rc7b8]} Qg2+ {[%emt 0:00:32] [#]} 33. Ke3 $2 {[%emt 0:00:31]} (33. Ke1 $1 Qg1+ 34. Kd2 Qg5+ 35. Kc3 Qf6+ 36. Kb4 Qd4+ 37. Qxd4 e5 38. Nc8+ Ka8 39. Qd5 Nd3+ 40. Kc3) 33... Qe4+ $2 {[%emt 0:00:26][%mdl 8192]} (33... Qg5+ $11 34. Ke2 (34. Bf4 Qxf4+ 35. Ke2 Qxh2+ 36. Kf1 Qh1+ 37. Ke2 Qxb1 $11) 34... Qg4+ 35. Kd2 Qg5+ 36. Kc3 Qf6+ 37. Kb4 Qd4+ 38. Qxd4 e5 39. Bb8+ Kxb8 40. Qd8+ Ka7) 34. Kd2 {[%emt 0:00:21][%csl Gd8][%cal Rc7b8]} Qg2+ {[%emt 0:00:05]} 35. Kc1 {[%emt 0:00:52][%csl Gd8][%cal Rc7b8]} Qg5+ {[%emt 0:01:00]} 36. Kb2 {[%emt 0:00:32][%csl Gb6][%cal Rd8a8]} Nxa4+ {[%emt 0:00:30]} 37. Nxa4 {[%emt 0:01:35][%csl Ga4,Gd8][%cal Rc7b6]} Qb5+ {[%emt 0:00:03]} 38. Kc3 {[%emt 0:00:00][%csl Gc7][%cal Rd8b8]} Qc6+ {[%emt 0:00:13]} 39. Kb2 $2 {[%emt 0:00:04]} (39. Kd2 {mates} Qg2+ 40. Ke3 Qg5+ 41. Bf4 Qxf4+ 42. Kxf4 e5+ 43. Kxe5 f6+ 44. Ke6) 39... Qb5+ {[%emt 0:00:15]} 40. Kc3 $2 {[%emt 0:00:03][%mdl 8192]} (40. Kc1 $11 Qf1+ 41. Kd2 Qg2+ 42. Ke3 Qg5+ 43. Bf4 Qxf4+ 44. Kxf4 e5+ 45. Kxe5) 40... Qc6+ {[%emt 0:00:07]} 41. Kd2 {[%emt 0:04:53][%csl Gc7][%cal Rd8b8] White mates.} Qg2+ {[%emt 0:01:52]} 42. Ke3 {[%emt 0:00:17][%csl Ga4,Gb1,Gd8][%cal Rc7b6]} Qh3+ {[%emt 0:00:48]} 43. Bg3 {[%emt 0:00:27][%csl Gg3][%cal Rd8b8]} Qe6+ {[%emt 0:00:08] Weighted Error Value: White=0.60/Black=0.35} 1-0

[Event "FRA-ch Teams Top 16-B 2022"]
[Site "Chartres"]
[Date "2022.06.10"]
[Round "2.7"]
[White "Philippe, Christophe"]
[Black "Roubert, Emile"]
[Result "1-0"]
[ECO "C29"]
[WhiteElo "2379"]
[BlackElo "2027"]
[Annotator "TA"]
[PlyCount "75"]
[EventDate "2022.06.09"]
[EventType "team-tourn"]
[EventCountry "FRA"]
[SourceTitle "playchess.com"]
[Source "ChessBase"]
[SourceQuality "1"]
[TimeControl "40/5400+30:1800+30"]

{[%evp 9,75,-39,-38,-22,-33,-34,-34,-39,-25,-48,-49,-54,-31,-56,-58,-91,-81,-167,-164,-166,-116,-139,-55,-58,0,0,113,116,104,0,93,78,104,108,89,8,10,0,0,0,0,0,0,0,0,0,0,0,0,0,7,0,67,29,62,61,62,62,69,56,89,57,193,179,180,151,964,952]} 1. e4 {[%emt 0:01:55]} e5 {[%emt 0:00:05]} 2. Nc3 {[%emt 0:00:09]} Nf6 {[%emt 0:00:18][%cal Bg8f6,Bf6e4,Be4c3][%mdl 32]} 3. f4 {[%emt 1:29:56]} d5 {[%emt 0:00:35]} 4. fxe5 {[%emt 0:00:00]} Nxe4 {[%emt 0:00:06]} 5. Nf3 {[%emt 0:00:00]} Bc5 {[%emt 0:01:43]} 6. Qe2 {[%emt 0:00:00] C29: Vienna Game: 2...Nf6 3 f4.} Bf2+ {[%emt 0:17:32]} 7. Kd1 {[%emt 0:00:00]} Nxc3+ {[%emt 0:00:05]} ({Don't play} 7... Nc6 8. Nxe4 dxe4 9. Qxe4 $14) 8. dxc3 {[%emt 0:00:00] Black is slightly better.} Bb6 {[%emt 0:03:49]} 9. Bg5 {[%emt 0:00:00]} Qd7 {[%emt 0:00:09]} 10. Kd2 {[%emt 0:00:00]} h6 {[%emt 0:10:26]} 11. Bh4 {[%emt 0:00:00]} O-O {[%emt 0:01:51] [#]} 12. a4 $146 {[%emt 0:00:00]} ({Predecessor:} 12. Rd1 Qa4 13. Kc1 Qxa2 14. Be7 Re8 15. Ba3 Nc6 16. Qe1 Bg4 17. Kd2 d4 18. cxd4 Nxd4 19. Nxd4 {0-1 (32) Schlamp,R (2328)-Rupprecht,A (2329) Germany 2004}) 12... Nc6 {[%emt 0:16:34]} 13. Rd1 {[%emt 0:00:00]} (13. Qe1 $17 {might work better.}) 13... Qg4 $19 {[%emt 0:02:51]} 14. b3 {[%emt 0:00:00]} Qf4+ {[%emt 0:13:34]} ({Better is} 14... Ba5 $19 {Threatens to win with ...Nd4.} 15. Be1 Qf4+ 16. Qe3 Bxc3+ $1 {[%mdl 512]} 17. Ke2 Bxe5 18. Rxd5 Qxe3+ 19. Kxe3 Bd6) 15. Ke1 $17 {[%emt 0:00:00]} d4 {[%emt 0:02:46]} ({Black should play} 15... Ba5 $17 16. b4 Nxb4) 16. Bg3 $15 {[%emt 0:00:00]} Qf5 {[%emt 0:02:38]} (16... Qg4 $1 $15 17. Nxd4 Nxd4 18. cxd4 Bxd4) 17. cxd4 $11 {[%emt 0:00:00]} ({Avoid the trap} 17. Nxd4 $2 Nxd4 18. Rxd4 Bxd4 19. cxd4 Rd8 $19) 17... Nb4 {[%emt 0:09:14]} (17... Be6 $11 {keeps the balance.}) 18. c3 $16 {[%emt 0:00:00]} Nd5 {[%emt 0:01:26] [#]} 19. Qd3 {[%emt 0:00:00]} ({White should try} 19. Qd2 $1 $16) 19... Qg4 {[%emt 0:02:04]} (19... Qxd3 $11 20. Rxd3 Bf5) 20. Be2 {[%emt 0:00:00]} Bf5 {[%emt 0:00:51] [#]} 21. Qd2 {[%emt 0:00:00] c4 is the strong threat.} ({But not} 21. Nh4 Bxd3 22. Bxg4 Bh7 $11) 21... Qe4 {[%emt 0:00:58]} 22. Kf2 {[%emt 0:00:00]} (22. c4 $16 Ne3 23. Bd3 Nc2+ 24. Kf1 Qxd3+ 25. Qxd3 Bxd3+ 26. Rxd3) 22... c5 $1 $11 {[%emt 0:02:34]} 23. Bd3 {[%emt 0:00:00]} Qxd3 {[%emt 0:02:27]} 24. Qxd3 {[%emt 0:00:00]} Bxd3 {[%emt 0:00:04]} 25. Rxd3 {[%emt 0:00:00] Hoping for dxc5.} cxd4 {[%emt 0:00:35]} 26. cxd4 {[%emt 0:00:00]} Rac8 {[%emt 0:00:45] Prevents Rc1.} 27. Re1 {[%emt 0:00:13]} Rfd8 {[%emt 0:03:01]} 28. e6 {[%emt 0:02:17]} fxe6 {[%emt 0:01:12]} 29. Rxe6 {[%emt 0:00:37]} Nb4 {[%emt 0:01:20]} 30. Rd2 {[%emt 0:01:41]} Nc6 {[%emt 0:01:25]} (30... Kf7 $11 31. Rd6 Rc3) 31. Re4 {[%emt 0:02:50] White is more active.} Rd5 {[%emt 0:00:39]} 32. Ke2 {[%emt 0:01:06]} Rcd8 {[%emt 0:00:24][%cal Rc6d4]} 33. Bf2 {[%emt 0:00:30]} Kf7 {[%emt 0:01:04]} 34. Be3 {[%emt 0:01:01]} Ba5 {[%emt 0:00:39]} 35. Rd1 {[%emt 0:00:39]} b5 {[%emt 0:00:25]} (35... Bb6 $14) 36. Rc1 $18 {[%emt 0:01:17]} Ne7 {[%emt 0:00:38]} 37. Ne5+ {[%emt 0:02:29]} Kf6 $2 {[%emt 0:00:43]} (37... Kg8 $16 38. axb5 Rxb5) 38. Rf1+ {[%emt 0:00:28] Never resign too early!  Weighted Error Value: White=0.19 (very precise) /Black=0.33} 1-0

[Event "FRA-ch Teams Top 16-B 2022"]
[Site "Chartres"]
[Date "2022.06.10"]
[Round "2.8"]
[White "Gennesseaux, Gabrielle"]
[Black "Steil-Antoni, Fiona"]
[Result "0-1"]
[ECO "B06"]
[WhiteElo "1794"]
[BlackElo "2198"]
[Annotator "TA"]
[PlyCount "62"]
[EventDate "2022.06.09"]
[EventType "team-tourn"]
[EventCountry "FRA"]
[SourceTitle "playchess.com"]
[Source "ChessBase"]
[SourceQuality "1"]
[TimeControl "40/5400+30:1800+30"]

{[%evp 9,62,27,76,29,45,35,47,41,50,43,50,42,43,47,52,0,2,-3,27,18,18,2,0,0,3,-27,0,-31,-30,-30,-17,-85,-80,-153,-151,-196,-64,-935,-908,-979,-948,-1064,-1063,-1139,-1137,-1137,-1104,-1118,-1134,-1129,-1091,-1177,-1181,-29989,-1117]} 1. e4 {[%emt 0:00:06]} c6 {[%emt 0:00:28]} 2. d4 {[%emt 0:00:08]} g6 {[%emt 0:00:15]} 3. Nf3 {[%emt 0:01:36]} Bg7 {[%emt 0:00:30]} 4. c3 {[%emt 0:04:22]} d5 {[%emt 0:01:52]} 5. e5 {[%emt 0:05:14]} Bg4 {[%emt 0:01:24]} (5... f6 $11 {was preferrable.}) 6. Be2 {[%emt 0:06:12] B06: Modern Defence.} (6. Nbd2 $16) 6... e6 {[%emt 0:01:44]} 7. O-O {[%emt 0:04:24]} Ne7 {[%emt 0:00:25]} 8. Nbd2 {[%emt 0:03:05] White is slightly better.} O-O {[%emt 0:00:45]} 9. h3 {[%emt 0:01:24]} Bxf3 {[%emt 0:00:07]} 10. Nxf3 {[%emt 0:00:15]} ({Much worse is} 10. gxf3 c5 $15) 10... c5 {[%emt 0:02:33] [#]} 11. Bg5 $146 {[%emt 0:03:38]} ({Predecessor:} 11. b4 c4 12. a4 a5 13. b5 Nd7 14. Nh2 Nf5 15. Ng4 Qh4 16. Bf3 Rfe8 17. g3 {1-0 (33) Ottesen,S (2410)-Caressa,M (2240) ICCF email 2011}) 11... h6 {[%emt 0:03:38]} 12. Bh4 {[%emt 0:06:26]} (12. Bd2 $14) 12... Nbc6 {[%emt 0:02:19]} 13. Qd2 {[%emt 0:04:12]} Qb6 {[%emt 0:04:40]} (13... g5 $5 14. Bg3 cxd4 $11) 14. Bf6 {[%emt 0:06:07]} cxd4 $1 {[%emt 0:06:49]} 15. Bxg7 {[%emt 0:02:59]} Kxg7 {[%emt 0:00:49]} 16. cxd4 {[%emt 0:00:15]} Rac8 {[%emt 0:01:54]} 17. Rac1 {[%emt 0:05:54]} Rc7 {[%emt 0:01:20]} 18. g4 {[%emt 0:10:57]} Rfc8 {[%emt 0:03:56][%cal Oc6d4]} 19. Rc3 {[%emt 0:05:07]} ({Much weaker is} 19. Qf4 Nxd4 $1 {[%mdl 512]} 20. Nxd4 Rxc1 21. Nxe6+ Qxe6 $17) 19... Na5 $1 {[%emt 0:04:18]} 20. Rfc1 {[%emt 0:05:10]} (20. Rxc7 $11 {keeps the balance.} Qxc7 21. Bd3 (21. Qf4 Qc2 $15)) 20... Nc4 $1 $17 {[%emt 0:10:04]} 21. Qc2 {[%emt 0:09:26] [#]} (21. Qf4 $142) 21... Rc6 $1 {[%emt 0:01:41]} 22. b3 {[%emt 0:02:21] [#]} Na3 {[%emt 0:01:24]} (22... Nxe5 $1 $19 {[%mdl 512]} 23. Rc5 Nxf3+ 24. Bxf3 g5) 23. Qd2 $2 {[%emt 0:01:38][%mdl 8192] This costs White the game.} (23. Qd3 $15) 23... Rxc3 $19 {[%emt 0:01:40]} 24. Rxc3 {[%emt 0:00:05]} Nb1 $1 {[%emt 0:00:12][%csl LRc3,LRd2] Pair of Knights!} 25. Qf4 {[%emt 0:02:51]} Nxc3 {[%emt 0:00:54]} 26. Qf6+ {[%emt 0:00:55]} Kf8 {[%emt 0:01:42]} 27. Bd3 {[%emt 0:01:13]} Ne4 {[%emt 0:00:27]} 28. Qf4 {[%emt 0:06:13]} g5 {[%emt 0:01:04]} 29. Qe3 {[%emt 0:00:11]} Qc7 {[%emt 0:00:41]} 30. Kg2 {[%emt 0:00:50]} Qc1 {[%emt 0:00:17]} 31. Qe2 {[%emt 0:00:17]} Nc3 {[%emt 0:00:33] Weighted Error Value: White=0.85/Black=0.10 (very precise)} (31... Ng6 $142 32. Ba6 Nf4+ 33. Kh2 Nxe2 34. Bxe2 Rc2 35. h4 Rxe2 36. hxg5 Rxf2+ 37. Kh3 Qh1+ 38. Nh2 Rxh2#) 0-1

[Event "FRA-ch Teams Top 16-B 2022"]
[Site "Chartres"]
[Date "2022.06.10"]
[Round "2.9"]
[White "Gharamian, Tigran"]
[Black "Neiksans, Arturs"]
[Result "1/2-1/2"]
[ECO "B41"]
[WhiteElo "2602"]
[BlackElo "2579"]
[Annotator "TA"]
[PlyCount "59"]
[EventDate "2022.06.09"]
[EventType "team-tourn"]
[EventCountry "FRA"]
[SourceTitle "playchess.com"]
[Source "ChessBase"]
[SourceQuality "1"]
[TimeControl "40/5400+30:1800+30"]

{[%evp 13,59,35,35,29,36,22,36,21,35,38,69,73,79,79,88,81,85,75,115,108,107,117,151,55,55,55,55,57,62,65,74,72,93,43,43,41,45,45,63,41,50,52,52,47,51,22,35,9]} 1. e4 {[%emt 0:01:33]} c5 {[%emt 0:00:10]} 2. Nf3 {[%emt 0:00:06]} e6 {[%emt 0:00:05]} 3. d4 {[%emt 0:00:07]} cxd4 {[%emt 0:00:07]} 4. Nxd4 {[%emt 0:00:05]} a6 {[%emt 0:00:23]} 5. c4 {[%emt 0:00:16]} Nf6 {[%emt 0:00:27]} 6. Nc3 {[%emt 0:00:11]} Qc7 {[%emt 0:00:19]} 7. Be2 {[%emt 0:01:06]} Bb4 {[%emt 0:00:30]} 8. Qb3 {[%emt 0:02:44] B41: Sicilian: Kan Variation: 5 c4.} Bc5 {[%emt 0:16:23]} 9. Be3 {[%emt 0:01:49]} O-O {[%emt 0:04:05]} 10. Rd1 {[%emt 0:05:13]} d6 {[%emt 0:06:46] [#]} 11. Bg5 $146 {[%emt 0:21:56]} ({Predecessor:} 11. a3 Nc6 12. O-O Bd7 13. Qc2 h6 14. b4 Nxd4 15. Bxd4 Bxd4 16. Rxd4 Rfc8 17. Qd2 {1-0 (39) Kecskemeti,A (2157)-Sonkoly,L (2037) Hungary 2016}) 11... Nc6 {[%emt 0:26:24]} 12. Bxf6 {[%emt 0:11:48]} gxf6 {[%emt 0:00:25]} 13. Nxc6 {[%emt 0:00:06]} Qxc6 {[%emt 0:00:06]} 14. O-O {[%emt 0:14:17]} Kh8 {[%emt 0:02:58]} 15. Na4 {[%emt 0:03:47]} Ba7 {[%emt 0:16:30] [#]} 16. Qf3 $1 {[%emt 0:01:22] White is more active.} f5 {[%emt 0:05:11]} (16... Qxa4 17. Qxf6+ Kg8 18. Qg5+ Kh8 19. Qe7 $18) 17. Nc3 {[%emt 0:02:05]} e5 {[%emt 0:04:09]} 18. exf5 {[%emt 0:13:10]} (18. Qh5 $16 {Qh6 is the strong threat.} f6 19. exf5) 18... Qxf3 $14 {[%emt 0:01:08]} 19. Bxf3 {[%emt 0:00:04] And now Ne4 would win.} Bxf5 {[%emt 0:00:06]} 20. Rxd6 {[%emt 0:03:24]} Bd4 {[%emt 0:00:46]} 21. Rc1 {[%emt 0:03:29]} Rac8 {[%emt 0:04:07]} 22. b3 {[%emt 0:01:53]} b5 {[%emt 0:01:45]} 23. Bd5 {[%emt 0:00:37]} ({Reject} 23. Rxa6 $6 bxc4 24. b4 Rb8 $11) (23. Be2 $16) 23... Bd3 {[%emt 0:02:50][%cal Rb5c4]} 24. Nd1 {[%emt 0:06:08]} a5 {[%emt 0:02:01]} 25. Ne3 {[%emt 0:00:31]} a4 {[%emt 0:02:17]} 26. Rd1 {[%emt 0:00:35]} axb3 {[%emt 0:00:16]} 27. axb3 {[%emt 0:00:08]} ({Much weaker is} 27. Rxd3 bxa2 28. Rd1 a1=Q 29. Rxa1 Bxa1 30. cxb5 Rc1+ 31. Nf1 Bd4 $15) 27... bxc4 {[%emt 0:00:05]} 28. Bxc4 {[%emt 0:01:32]} ({Much worse is} 28. Nxc4 Bc2 29. Rf1 Bxb3 $11) 28... Bg6 {[%emt 0:00:14]} 29. g3 {[%emt 0:03:17]} Ra8 {[%emt 0:00:28]} 30. Ra6 {[%emt 0:01:05] Weighted Error Value: White=0.10 (very precise) /Black=0.09 (flawless)} 1/2-1/2